fUST/lending_fUST_20250413
["ID","MTS","AMOUNT","RATE_DAILY","PERIOD"]
[357894461,1744523449178,-396.232224,0.000208,2]
[357894462,1744523449187,-151.0,0.000208,2]
[357894463,1744523449197,-242.132761,0.000208,2]
[357894464,1744523449206,-242.132761,0.000208,2]
[357894465,1744523449216,-236.302105,0.000208,2]
[357894466,1744523449225,-154.280085,0.000208,2]
[357894467,1744523449235,-715.27578,0.000208,2]
[357894468,1744523449244,-500.0,0.00020945,2]
[357894469,1744523449254,-3000.0,0.00020949,2]
[357894470,1744523449263,-151.0,0.00020949,2]
[357894471,1744523449273,-151.0,0.00020949,2]
[357894472,1744523449282,-151.0,0.00020949,2]
[357894473,1744523449292,-151.0,0.00020949,2]
[357894474,1744523449302,-151.0,0.00020949,2]
[357894475,1744523449312,-42.99119572,0.00020949,2]
[357894495,1744524390043,762.3,0.00025,10]
[357894498,1744524632490,-2623.74444407,0.00019463,2]
[357894500,1744524632500,-3794.39000903,0.00019563,2]
[357894768,1744524638524,-2105.52615677,0.00019563,2]
[357894770,1744524638535,-1000.0,0.0002,2]
[357894772,1744524638546,-250.0,0.00020299,2]
[357894774,1744524638556,-300.0,0.00020371,2]
[357894776,1744524638566,-500.0,0.00020373,2]
[357894778,1744524638576,-500.0,0.00020373,2]
[357894780,1744524638589,-500.0,0.00020373,2]
[357894782,1744524638600,-209.62580749,0.0002038,2]
[357894784,1744524638610,-151.0,0.00020387,2]
[357894785,1744524638619,-151.0,0.00020387,2]
[357894788,1744524638630,-207.4,0.00020387,2]
[357894790,1744524638640,-1106.29791963,0.00020387,2]
[357894792,1744524638650,-280.39513088,0.00020399,2]
[357894793,1744524638660,-244.85460432,0.00020399,2]
[357894794,1744524638670,-528.76679505,0.00020399,2]
[357894795,1744524638680,-500.0,0.00020399,2]
[357894796,1744524638689,-272.64695517,0.00020399,2]
[357894797,1744524638699,-500.0,0.00020399,2]
[357894798,1744524638708,-500.0,0.00020399,2]
[357894799,1744524638718,-500.0,0.00020399,2]
[357894800,1744524638727,-500.0,0.00020399,2]
[357894801,1744524638737,-500.0,0.00020399,2]
[357894802,1744524638747,-500.0,0.00020399,2]
[357894803,1744524638756,-500.0,0.00020399,2]
[357894804,1744524638765,-500.0,0.00020399,2]
[357894805,1744524638774,-543.7822563,0.00020399,2]
[357894806,1744524638783,-500.0,0.00020399,2]
[357894807,1744524638793,-500.0,0.00020399,2]
[357894808,1744524638802,-500.0,0.00020399,2]
[357894809,1744524638812,-500.0,0.00020399,2]
[357894810,1744524638821,-500.0,0.00020399,2]
[357894812,1744524638831,-500.0,0.00020399,2]
[357894814,1744524638840,-500.0,0.00020399,2]
[357894816,1744524638851,-500.0,0.00020399,2]
[357894817,1744524638860,-500.0,0.00020399,2]
[357894819,1744524638870,-500.0,0.00020399,2]
[357894820,1744524638880,-500.0,0.00020399,2]
[357894821,1744524638890,-500.0,0.00020399,2]
[357894822,1744524638900,-500.0,0.00020399,2]
[357894824,1744524638909,-500.0,0.00020399,2]
[357894826,1744524638919,-500.0,0.00020399,2]
[357894827,1744524638929,-500.0,0.00020399,2]
[357894829,1744524638939,-500.0,0.00020399,2]
[357894831,1744524638948,-500.0,0.00020399,2]
[357894833,1744524638957,-500.0,0.00020399,2]
[357894834,1744524638967,-500.0,0.00020399,2]
[357894836,1744524638978,-500.0,0.00020399,2]
[357894838,1744524638987,-500.0,0.00020399,2]
[357894840,1744524638997,-500.0,0.00020399,2]
[357894842,1744524639007,-500.0,0.00020399,2]
[357894844,1744524639016,-500.0,0.00020399,2]
[357894845,1744524639026,-500.0,0.00020399,2]
[357894847,1744524639035,-500.0,0.00020399,2]
[357894849,1744524639045,-500.0,0.00020399,2]
[357894851,1744524639055,-500.0,0.00020399,2]
[357894853,1744524639065,-381.18696914,0.00020399,2]
[357894855,1744524639075,-500.0,0.00020399,2]
[357894856,1744524639084,-500.0,0.00020399,2]
[357894857,1744524639094,-500.0,0.00020399,2]
[357894858,1744524639103,-500.0,0.00020399,2]
[357894859,1744524639112,-500.0,0.00020399,2]
[357894860,1744524639121,-500.0,0.00020399,2]
[357894861,1744524639131,-500.0,0.00020399,2]
[357894862,1744524639140,-500.0,0.00020399,2]
[357894863,1744524639149,-500.0,0.00020399,2]
[357894864,1744524639159,-61829.92698268,0.000204,2]
[357894865,1744524639180,-656.70135528,0.000204,2]
[357894880,1744524643324,-338.11558195,0.000204,2]
[357894883,1744524643929,-560.21934862,0.000204,2]
[357894884,1744524643941,-8342.55159641,0.000204,2]
[357894890,1744524691048,1078.47412163,5e-05,2]
[357894899,1744525377144,563.26,0.00027,30]
[357895021,1744525832606,-250.0,0.00019363,2]
[357895023,1744525832617,-151.0,0.00019407,2]
[357895025,1744525832626,-151.0,0.00019407,2]
[357895028,1744525832637,-151.0,0.00019407,2]
[357895030,1744525832647,-151.0,0.00019407,2]
[357895032,1744525832657,-151.0,0.00019407,2]
[357895034,1744525832666,-151.0,0.00019407,2]
[357895036,1744525832675,-175.12557697,0.00019407,2]
[357895038,1744525832684,-207.4,0.00019407,2]
[357895040,1744525832693,-300.0,0.00019418,2]
[357895041,1744525832703,-151.0,0.00019955,2]
[357895042,1744525832713,-499.999999,0.0002048,2]
[357895043,1744525832724,-151.59830834,0.00020503,2]
[357895044,1744525832734,-500.0,0.0002055,2]
[357895045,1744525832744,-151.0,0.00020776,2]
[357895046,1744525832754,-215.0738,0.00020776,2]
[357895047,1744525832763,-500.0,0.0002088,2]
[357895048,1744525832773,-645.09085517,0.00020949,2]
[357895049,1744525832785,-2154.90914483,0.00020949,2]
[357895050,1744525832802,-500.0,0.00020998,2]
[357895051,1744525832813,-255.0,0.00021,5]
[357895052,1744525832823,-157.0,0.00021,2]
[357895053,1744525832834,-420.0,0.00021157,2]
[357895054,1744525832844,-2276.049,0.00021177,2]
[357895055,1744525832854,-150.659,0.00021177,2]
[357895056,1744525832865,-500.000001,0.0002118,2]
[357895057,1744525832875,-150.162,0.00021283,2]
[357895058,1744525832885,-211.118347,0.00021318,2]
[357895059,1744525832895,-209.62580749,0.00021534,2]
[357895060,1744525832906,-500.0,0.00021596,2]
[357895061,1744525832916,-500.0,0.00021596,2]
[357895062,1744525832926,-500.0,0.00021596,2]
[357895063,1744525832936,-500.0,0.00021596,2]
[357895064,1744525832947,-222.34671449,0.00021596,2]
[357895110,1744525838799,-13769.8502082,0.00020056,2]
[357895111,1744525838811,-707.0,0.00021177,2]
[357895113,1744525838822,-500.0,0.00021596,2]
[357895114,1744525838832,-277.65328551,0.00021596,2]
[357895115,1744525838842,-500.0,0.00021596,2]
[357895116,1744525838852,-500.0,0.00021596,2]
[357895117,1744525838862,-500.0,0.00021596,2]
[357895118,1744525838873,-578.94233196,0.00021596,2]
[357895119,1744525838884,-500.0,0.00021596,2]
[357895120,1744525838894,-500.0,0.00021596,2]
[357895121,1744525838904,-500.0,0.00021596,2]
[357895122,1744525838914,-500.0,0.00021596,2]
[357895123,1744525838924,-373.15700163,0.00021596,2]
[357895124,1744525838934,-500.0,0.00021596,2]
[357895125,1744525838944,-500.0,0.00021596,2]
[357895126,1744525838954,-500.0,0.00021596,2]
[357895127,1744525838965,-252.06378691,0.00021596,2]
[357895131,1744525840975,-545.343,0.00021177,2]
[357895132,1744525840985,-133.33093402,0.00021596,2]
[357895136,1744525843685,-114.60527907,0.00021596,2]
[357895137,1744525843695,-500.0,0.00021596,2]
[357895138,1744525843705,-500.0,0.00021596,2]
[357895139,1744525843715,-340.09472091,0.00021596,2]
[357895186,1744526042805,-303.951959,0.00021,2]
[357895187,1744526045005,-310.82727415,0.00021,2]
[357895192,1744526066031,-701.55099764,0.00021,2]
[357895193,1744526067305,-167.21541247,0.00021,2]
[357895194,1744526070767,-275.07509148,0.00021,2]
[357895195,1744526080853,-289.69131863,0.00021,2]
[357895199,1744526108056,-300.0,0.00021,2]
[357895200,1744526109754,-1224.78481081,0.00021,2]
[357895201,1744526113941,-151.0,0.00021,2]
[357895202,1744526116639,-349.0,0.00021,2]
[357895203,1744526123762,-166.4509017,0.00021,2]
[357895204,1744526131060,-251.14950577,0.00021,2]
[357895205,1744526137748,-171.5637043,0.00021597,3]
[357895206,1744526151523,-225.89986162,0.00020948,2]
[357895207,1744526163003,-225.89986162,0.00020948,2]
[357895208,1744526192549,-225.89986162,0.000209,2]
[357895209,1744526200874,-300.0,0.000209,2]
[357895210,1744526217578,-88.87937153,0.000209,2]
[357895211,1744526217602,-211.12062847,0.00021,2]
[357895212,1744526224410,-189.92403957,0.00021,2]
[357895213,1744526240081,-300.0,0.00020948,2]
[357895214,1744526283023,-95.3650567,0.00020948,2]
[357895215,1744526283046,-204.6349433,0.00021,2]
[357895216,1744526337238,-296.5237925,0.00020948,2]
[357895217,1744526376919,-222.3928444,0.00020948,2]
[357895218,1744526404667,-300.0,0.00021,2]
[357895219,1744526405849,-200.0,0.00021,2]
[357895220,1744526434056,-166.7946333,0.00020948,2]
[357895221,1744526434080,-133.2053667,0.00021,2]
[357895222,1744526435244,-166.7946333,0.00021,2]
[357895223,1744526504761,-245.9325562,0.000209,2]
[357895259,1744527032753,-245.9325562,0.000208,2]
[357895261,1744527032763,-254.0674438,0.000209,2]
[357895263,1744527032772,-190.13314339,0.000209,2]
[357895265,1744527032782,-166.7946333,0.00020948,2]
[357895267,1744527032791,-350.81961802,0.00021,2]
[357895307,1744527038050,-1208.75877963,0.00021,2]
[357895358,1744527660641,5500.0,0.00025,10]
[357895368,1744528231888,-382.5,0.00019949,2]
[357895375,1744528231945,-1562.80570186,0.00019949,2]
[357895378,1744528231956,-709.80949069,0.00019949,2]
[357895383,1744528232000,-612.27462915,0.00019949,2]
[357895385,1744528232010,-250.0,0.00019954,2]
[357895387,1744528232020,-301.1885643,0.00020496,2]
[357895389,1744528232030,-159.707587,0.00020496,2]
[357895391,1744528232040,-159.707587,0.00020598,2]
[357895394,1744528232053,-250.0,0.000207,2]
[357895396,1744528232062,-1204.33000998,0.00020897,2]
[357895399,1744528232072,-264.82051261,0.00020996,2]
[357895450,1744528232323,-35.17948739,0.00020996,2]
[357895452,1744528232333,-605.86764888,0.00020996,2]
[357895495,1744528238116,-2314.75,0.000209,2]
[357895497,1744528238127,-500.0,0.00020996,2]
[357895500,1744528238138,-500.0,0.00020996,2]
[357895502,1744528238148,-500.0,0.00020996,2]
[357895504,1744528238158,-500.0,0.00020996,2]
[357895506,1744528238168,-335.92908674,0.00020996,2]
[357895508,1744528238178,-500.0,0.00020996,2]
[357895510,1744528238188,-500.0,0.00020996,2]
[357895512,1744528238198,-500.0,0.00020996,2]
[357895514,1744528238208,-500.0,0.00020996,2]
[357895516,1744528238219,-500.0,0.00020996,2]
[357895517,1744528238230,-500.0,0.00020996,2]
[357895518,1744528238239,-500.0,0.00020996,2]
[357895519,1744528238249,-500.0,0.00020996,2]
[357895520,1744528238259,-500.0,0.00020996,2]
[357895521,1744528238269,-500.0,0.00020996,2]
[357895522,1744528238279,-500.0,0.00020996,2]
[357895523,1744528238288,-500.0,0.00020996,2]
[357895524,1744528238298,-197.08947424,0.00020996,2]
[357895525,1744528238308,-500.0,0.00020996,2]
[357895526,1744528238317,-500.0,0.00020996,2]
[357895527,1744528238327,-500.0,0.00020996,2]
[357895528,1744528238337,-500.0,0.00020996,2]
[357895529,1744528238347,-500.0,0.00020996,2]
[357895530,1744528238358,-500.0,0.00020996,2]
[357895531,1744528238368,-2719.41211898,0.00020996,2]
[357895532,1744528238378,-11193.29530873,0.00020996,3]
[357895533,1744528238388,-5011.66206088,0.00020997,3]
[357895534,1744528238398,-312.44791667,0.00020998,3]
[357895535,1744528238407,-1219.95460274,0.00021,2]
[357895536,1744528238417,-678.74810056,0.00021,2]
[357895537,1744528238427,-242.278519,0.00021,2]
[357895538,1744528238436,-242.278519,0.00021,2]
[357895539,1744528238446,-243.497861,0.00021,2]
[357895540,1744528238455,-243.497861,0.00021,2]
[357895541,1744528238465,-252.260103,0.00021,2]
[357895542,1744528238475,-252.260103,0.00021,2]
[357895543,1744528238484,-151.0,0.00021,2]
[357895544,1744528238494,-1508.542123,0.00021,2]
[357895545,1744528238504,-1508.542123,0.00021,2]
[357895546,1744528238513,-1204.33000996,0.00021028,2]
[357895547,1744528238523,-151.0,0.00021031,2]
[357895548,1744528238532,-151.0,0.00021031,2]
[357895549,1744528238542,-151.0,0.00021031,2]
[357895550,1744528238552,-151.0,0.00021031,2]
[357895551,1744528238562,-251.14950577,0.00021056,2]
[357895552,1744528238572,-2005.40014618,0.000211,2]
[357895553,1744528238590,-3994.59985382,0.000211,2]
[357895554,1744528238600,-48.17351804,0.000211,2]
[357895582,1744528240480,-102.82648196,0.000211,2]
[357895583,1744528240491,-151.0,0.000211,2]
[357895584,1744528240500,-168.34059789,0.000211,2]
[357895698,1744528318951,262.0,0.00025,10]
[357895708,1744528993337,-894.27773265,0.0002,3]
[357895712,1744529030894,-166.7946333,0.0002,3]
[357895713,1744529033475,-152.49188077,0.0002,3]
[357895714,1744529075070,-166.7946333,0.0002,3]
[357895715,1744529077783,-216.98648482,0.0002,3]
[357895727,1744529202793,-250.0,0.0002,3]
[357895728,1744529223304,-300.0,0.0002,3]
[357895729,1744529225562,-302.74044438,0.0002,3]
[357895771,1744529274373,-255.04334378,0.00018,2]
[357895777,1744529315480,-341.46849904,0.00018,2]
[357895780,1744529343216,-199.2510479,0.00018,2]
[357895781,1744529368523,-192.11,0.00018,2]
[357895786,1744529396735,-212.57211159,0.00018,2]
[357895787,1744529396760,-250.0,0.00019023,2]
[357895788,1744529396785,-105.99906835,0.00019899,2]
[357895789,1744529408865,-339.84397746,0.00018,2]
[357895817,1744529432364,-0.88435376,0.00018,2]
[357895818,1744529432374,-921.15303553,0.00019899,2]
[357895819,1744529432384,-300.0,0.00019926,2]
[357895820,1744529432397,-300.0,0.00019926,2]
[357895821,1744529432406,-235.58390639,0.00019927,2]
[357895822,1744529432439,-21193.97925581,0.00019927,2]
[357895823,1744529432449,-151.0,0.00019999,2]
[357895824,1744529432458,-493.16394393,0.00019999,2]
[357895825,1744529432468,-500.0,0.00019999,2]
[357895826,1744529432478,-434.68981398,0.00019999,2]
[357895827,1744529432487,-500.0,0.00019999,2]
[357895828,1744529432497,-500.0,0.00019999,2]
[357895829,1744529432507,-500.0,0.00019999,2]
[357895830,1744529432516,-363.7380558,0.00019999,2]
[357895831,1744529432525,-500.0,0.00019999,2]
[357895832,1744529432535,-500.0,0.00019999,2]
[357895833,1744529432544,-500.0,0.00019999,2]
[357895834,1744529432554,-500.0,0.00019999,2]
[357895835,1744529432563,-500.0,0.00019999,2]
[357895836,1744529432572,-500.0,0.00019999,2]
[357895837,1744529432582,-500.0,0.00019999,2]
[357895838,1744529432590,-500.0,0.00019999,2]
[357895839,1744529432600,-500.0,0.00019999,2]
[357895840,1744529432609,-500.0,0.00019999,2]
[357895841,1744529432618,-500.0,0.00019999,2]
[357895842,1744529432628,-500.0,0.00019999,2]
[357895843,1744529432637,-500.0,0.00019999,2]
[357895844,1744529432647,-500.0,0.00019999,2]
[357895845,1744529432656,-500.0,0.00019999,2]
[357895846,1744529432665,-500.0,0.00019999,2]
[357895847,1744529432674,-500.0,0.00019999,2]
[357895848,1744529432683,-500.0,0.00019999,2]
[357895849,1744529432694,-500.0,0.00019999,2]
[357895850,1744529432703,-500.0,0.00019999,2]
[357895851,1744529432713,-500.0,0.00019999,2]
[357895852,1744529432722,-500.0,0.00019999,2]
[357895853,1744529432732,-500.0,0.00019999,2]
[357895854,1744529432741,-500.0,0.00019999,2]
[357895855,1744529432751,-500.0,0.00019999,2]
[357895856,1744529432760,-500.0,0.00019999,2]
[357895857,1744529432769,-300.0,0.00019999,2]
[357895858,1744529432778,-500.0,0.00019999,2]
[357895859,1744529432787,-132.73576516,0.0002,3]
[357895860,1744529433381,-151.76750763,0.0002,3]
[357895895,1744529438307,-845.4165534,0.0002,3]
[357895896,1744529438323,-191.6541797,0.00020024,2]
[357895897,1744529438338,-723.66475502,0.00020047,2]
[357895898,1744529438351,-7263.02794732,0.00020047,2]
[357895899,1744529438450,-4261.07691556,0.00020047,2]
[357895900,1744529438460,-151.0,0.00020047,2]
[357895901,1744529438473,-1027.15210384,0.00020173,2]
[357895902,1744529438484,-1027.15210384,0.00020447,2]
[357895903,1744529438495,-1027.15210384,0.00020721,2]
[357895904,1744529438505,-707.0,0.00020725,2]
[357895905,1744529438515,-543.0,0.00020725,2]
[357895906,1744529438525,-177.37448446,0.00020897,2]
[357895907,1744529438535,-1027.15210384,0.00020995,2]
[357895908,1744529438545,-151.0,0.00020997,2]
[357895909,1744529438555,-1662.63988393,0.00021,2]
[357895910,1744529438565,-6303.08010548,0.00021,3]
[357895911,1744529438575,-619.0,0.00021,2]
[357895912,1744529438585,-8342.55159641,0.00021,2]
[357895913,1744529438596,-156.96,0.00021,2]
[357895914,1744529438605,-151.0,0.00021,2]
[357895915,1744529438615,-152.81425118,0.00021087,2]
[357895916,1744529438626,-207.4,0.00021087,2]
[357895917,1744529438637,-200.14,0.0002109,3]
[357895918,1744529438648,-151.0,0.00021096,2]
[357895919,1744529438658,-153.096286,0.00021096,2]
[357895920,1744529438668,-171.357374,0.00021096,2]
[357895921,1744529438678,-171.357374,0.00021096,2]
[357895922,1744529438688,-171.357374,0.00021096,2]
[357895923,1744529438699,-171.357374,0.00021096,2]
[357895924,1744529438709,-646.424254,0.00021096,2]
[357895925,1744529438719,-646.424254,0.00021096,2]
[357895926,1744529438728,-646.424254,0.00021096,2]
[357895927,1744529438738,-646.424254,0.00021096,2]
[357895928,1744529438748,-1357.687911,0.00021096,2]
[357895929,1744529438758,-1357.687911,0.00021096,2]
[357895930,1744529438768,-151.0,0.00021096,2]
[357895931,1744529438778,-1357.687911,0.00021096,2]
[357895932,1744529438788,-151.0,0.00021096,2]
[357895933,1744529438798,-1357.687911,0.00021096,2]
[357895934,1744529438808,-156.364613,0.00021096,2]
[357895935,1744529438819,-156.364613,0.00021096,2]
[357895936,1744529438830,-156.364613,0.00021096,2]
[357895937,1744529438839,-151.0,0.00021096,2]
[357895938,1744529438850,-151.0,0.00021096,2]
[357895939,1744529438860,-156.364613,0.00021096,2]
[357895940,1744529438870,-156.364613,0.00021096,2]
[357895941,1744529438880,-156.364613,0.00021096,2]
[357895942,1744529438889,-209.633638,0.00021096,2]
[357895943,1744529438899,-209.633638,0.00021096,2]
[357895944,1744529438909,-209.633638,0.00021096,2]
[357895945,1744529438919,-209.633638,0.00021096,2]
[357895946,1744529438928,-209.633638,0.00021096,2]
[357895947,1744529438938,-209.633638,0.00021096,2]
[357895948,1744529438953,-151.0,0.00021096,2]
[357895949,1744529438963,-518.15026865,0.00021096,2]
[357895950,1744529438973,-195.16263028,0.00021096,2]
[357895951,1744529438983,-151.0,0.00021097,2]
[357895952,1744529438994,-151.0,0.00021097,2]
[357895953,1744529439004,-151.0,0.00021097,2]
[357895954,1744529439014,-151.0,0.00021097,2]
[357895955,1744529439024,-151.0,0.00021097,2]
[357895956,1744529439034,-302.160499,0.00021097,2]
[357895957,1744529439044,-151.0,0.00021097,2]
[357895958,1744529439054,-302.160499,0.00021097,2]
[357895959,1744529439064,-151.0,0.00021097,2]
[357895960,1744529439074,-151.0,0.00021097,2]
[357895961,1744529439085,-171.357374,0.00021097,2]
[357895962,1744529439095,-171.357374,0.00021097,2]
[357895963,1744529439106,-646.424254,0.00021097,2]
[357895964,1744529439116,-646.424254,0.00021097,2]
[357895965,1744529439126,-1357.687911,0.00021097,2]
[357895966,1744529439137,-151.0,0.00021097,2]
[357895967,1744529439146,-1357.687911,0.00021097,2]
[357895968,1744529439157,-156.364613,0.00021097,2]
[357895969,1744529439167,-151.0,0.00021097,2]
[357895970,1744529439176,-156.364613,0.00021097,2]
[357895971,1744529439186,-209.633638,0.00021097,2]
[357895972,1744529439196,-209.633638,0.00021097,2]
[357895973,1744529439206,-151.0,0.00021098,2]
[357895974,1744529439216,-227.034093,0.00021098,2]
[357895975,1744529439226,-227.034093,0.00021098,2]
[357895976,1744529439237,-151.0,0.00021098,2]
[357895977,1744529439247,-151.0,0.00021098,2]
[357895978,1744529439256,-151.0,0.00021098,2]
[357895979,1744529439266,-793.560832,0.00021098,2]
[357895980,1744529439275,-793.560832,0.00021098,2]
[357895981,1744529439286,-793.560832,0.00021098,2]
[357895982,1744529439296,-793.560832,0.00021098,2]
[357895983,1744529439306,-151.0,0.00021098,2]
[357895984,1744529439316,-151.0,0.00021098,2]
[357895985,1744529439328,-151.0,0.00021098,2]
[357895986,1744529439340,-151.0,0.00021098,2]
[357895987,1744529439350,-151.0,0.00021098,2]
[357895988,1744529439360,-151.0,0.00021098,2]
[357895989,1744529439370,-151.0,0.00021098,2]
[357895990,1744529439381,-151.0,0.00021098,2]
[357895991,1744529439392,-152.300842,0.00021098,2]
[357895992,1744529439402,-302.160499,0.00021098,2]
[357895993,1744529439412,-151.0,0.00021098,2]
[357895994,1744529439422,-302.160499,0.00021098,2]
[357895995,1744529439433,-151.0,0.00021098,2]
[357895996,1744529439442,-151.0,0.00021098,2]
[357895997,1744529439452,-553.566948,0.00021098,2]
[357895998,1744529439462,-553.566948,0.00021098,2]
[357895999,1744529439473,-553.566948,0.00021098,2]
[357896000,1744529439484,-553.566948,0.00021098,2]
[357896001,1744529439493,-151.0,0.00021098,2]
[357896002,1744529439503,-151.0,0.00021098,2]
[357896003,1744529439513,-171.357374,0.00021098,2]
[357896004,1744529439523,-171.357374,0.00021098,2]
[357896005,1744529439533,-646.424254,0.00021098,2]
[357896006,1744529439543,-646.424254,0.00021098,2]
[357896007,1744529439553,-1357.687911,0.00021098,2]
[357896008,1744529439564,-151.0,0.00021098,2]
[357896009,1744529439576,-1357.687911,0.00021098,2]
[357896011,1744529439586,-156.364613,0.00021098,2]
[357896012,1744529439596,-151.0,0.00021098,2]
[357896013,1744529439606,-156.364613,0.00021098,2]
[357896014,1744529439616,-209.633638,0.00021098,2]
[357896015,1744529439626,-209.633638,0.00021098,2]
[357896016,1744529439637,-151.0,0.00021098,2]
[357896017,1744529439647,-151.0,0.00021098,2]
[357896018,1744529439657,-151.0,0.00021099,2]
[357896019,1744529439667,-151.0,0.00021099,2]
[357896020,1744529439676,-793.560832,0.00021099,2]
[357896021,1744529439686,-793.560832,0.00021099,2]
[357896022,1744529439696,-151.0,0.00021099,2]
[357896023,1744529439706,-151.0,0.00021099,2]
[357896024,1744529439716,-151.0,0.00021099,2]
[357896025,1744529439725,-151.0,0.00021099,2]
[357896026,1744529439736,-553.566948,0.00021099,2]
[357896027,1744529439747,-553.566948,0.00021099,2]
[357896028,1744529439757,-500.0,0.00021099,2]
[357896029,1744529439767,-151.0,0.00021099,2]
[357896030,1744529439777,-152.20342025,0.00021099,2]
[357896031,1744529439787,-151.0,0.00021099,2]
[357896032,1744529439797,-151.0,0.00021099,2]
[357896033,1744529439807,-151.0,0.00021099,2]
[357896034,1744529439817,-151.0,0.00021099,2]
[357896035,1744529439827,-151.0,0.00021099,2]
[357896036,1744529439837,-171.357374,0.00021099,2]
[357896039,1744529440101,-171.357374,0.00021099,2]
[357896040,1744529440112,-646.424254,0.00021099,2]
[357896041,1744529440123,-646.424254,0.00021099,2]
[357896042,1744529440134,-1357.687911,0.00021099,2]
[357896043,1744529440144,-151.0,0.00021099,2]
[357896044,1744529440154,-1357.687911,0.00021099,2]
[357896045,1744529440163,-156.364613,0.00021099,2]
[357896046,1744529440173,-156.364613,0.00021099,2]
[357896047,1744529440183,-156.364613,0.00021099,2]
[357896048,1744529440192,-280.175242,0.00021099,2]
[357896049,1744529440202,-156.364613,0.00021099,2]
[357896050,1744529440211,-156.364613,0.00021099,2]
[357896051,1744529440221,-156.364613,0.00021099,2]
[357896052,1744529440230,-209.633638,0.00021099,2]
[357896054,1744529440239,-209.633638,0.00021099,2]
[357896056,1744529440250,-209.633638,0.00021099,2]
[357896058,1744529440259,-209.633638,0.00021099,2]
[357896060,1744529440269,-209.633638,0.00021099,2]
[357896061,1744529440278,-209.633638,0.00021099,2]
[357896063,1744529440288,-151.0,0.00021099,2]
[357896065,1744529440297,-151.0,0.00021099,2]
[357896067,1744529440307,-151.0,0.000211,2]
[357896068,1744529440316,-151.0,0.000211,2]
[357896069,1744529440326,-153.066876,0.000211,2]
[357896070,1744529440335,-151.0,0.000211,2]
[357896071,1744529440345,-151.0,0.000211,2]
[357896072,1744529440356,-151.0,0.000211,2]
[357896073,1744529440365,-151.0,0.000211,2]
[357896074,1744529440375,-151.0,0.000211,2]
[357896075,1744529440395,-151.0,0.000211,2]
[357896076,1744529440407,-151.0,0.000211,2]
[357896077,1744529440418,-208.975135,0.000211,2]
[357896078,1744529440428,-151.0,0.000211,2]
[357896079,1744529440440,-151.0,0.000211,2]
[357896080,1744529440450,-209.664997,0.000211,2]
[357896081,1744529440460,-151.0,0.000211,2]
[357896082,1744529440471,-158.649237,0.000211,2]
[357896083,1744529440481,-151.0,0.000211,2]
[357896084,1744529440491,-151.0,0.000211,2]
[357896085,1744529440501,-151.0,0.000211,2]
[357896086,1744529440511,-276.515542,0.000211,2]
[357896087,1744529440521,-575.920441,0.000211,2]
[357896088,1744529440531,-575.920441,0.000211,2]
[357896089,1744529440542,-575.920441,0.000211,2]
[357896090,1744529440551,-575.920441,0.000211,2]
[357896091,1744529440561,-575.920441,0.000211,2]
[357896092,1744529440571,-575.920441,0.000211,2]
[357896093,1744529440581,-575.920441,0.000211,2]